[Event "Early-Titled-Tuesday-Blitz-September-12-2023"]
[Site "Chess.com"]
[Date "2023.09.12"]
[Round "3"]
[White "lachesisQ"]
[Black "PeshkaCh"]
[Result "1-0"]
[WhiteElo "3071"]
[BlackElo "2773"]
[TimeControl "180+1"]
[EndTime "8:27:17 PDT"]
[Termination "lachesisQ won by checkmate"]

1. e4 {[%clk 0:02:44.3]} 1... e5 {[%clk 0:02:59.5]} 2. Nf3 {[%clk 0:02:44]} 2...
Nc6 {[%clk 0:02:59.4]} 3. Bc4 {[%clk 0:02:43.8]} 3... Bc5 {[%clk 0:02:58.9]} 4.
c3 {[%clk 0:02:43]} 4... Nf6 {[%clk 0:02:58.9]} 5. d3 {[%clk 0:02:43.5]} 5... d6
{[%clk 0:02:58.5]} 6. O-O {[%clk 0:02:43.6]} 6... a5 {[%clk 0:02:56.8]} 7. Bb5
{[%clk 0:02:42.7]} 7... Bd7 {[%clk 0:02:48.3]} 8. Re1 {[%clk 0:02:41.1]} 8...
Ba7 {[%clk 0:02:44.2]} 9. a4 {[%clk 0:02:38]} 9... h6 {[%clk 0:02:44.1]} 10.
Nbd2 {[%clk 0:02:36.7]} 10... Ne7 {[%clk 0:02:42.8]} 11. d4 {[%clk 0:02:36.2]}
11... c6 {[%clk 0:02:41.4]} 12. Bd3 {[%clk 0:02:34.9]} 12... Ng6 {[%clk
0:02:41.5]} 13. Nf1 {[%clk 0:02:35.1]} 13... Bg4 {[%clk 0:02:38.7]} 14. Be3
{[%clk 0:02:30.6]} 14... Qe7 {[%clk 0:02:35.3]} 15. h3 {[%clk 0:02:29.2]} 15...
Bxf3 {[%clk 0:02:17]} 16. Qxf3 {[%clk 0:02:30.1]} 16... Nh7 {[%clk 0:01:56.4]}
17. Ng3 {[%clk 0:02:28.5]} 17... Ng5 {[%clk 0:01:55.6]} 18. Qg4 {[%clk 0:02:17]}
18... O-O {[%clk 0:01:10]} 19. Nf5 {[%clk 0:02:16.7]} 19... Qf6 {[%clk
0:01:10.4]} 20. Rad1 {[%clk 0:02:08.5]} 20... Ne6 {[%clk 0:01:06.2]} 21. Bb1
{[%clk 0:02:06.4]} 21... Rfd8 {[%clk 0:01:02.1]} 22. h4 {[%clk 0:02:01.3]} 22...
Kh8 {[%clk 0:00:49.7]} 23. g3 {[%clk 0:02:00.2]} 23... Ne7 {[%clk 0:00:43.6]}
24. Ba2 {[%clk 0:01:44.5]} 24... exd4 {[%clk 0:00:29.4]} 25. cxd4 {[%clk
0:01:40.8]} 25... d5 {[%clk 0:00:27.5]} 26. Nxe7 {[%clk 0:01:29.3]} 26... Qxe7
{[%clk 0:00:28.4]} 27. e5 {[%clk 0:01:24.1]} 27... Nf8 {[%clk 0:00:28.6]} 28.
Bb1 {[%clk 0:01:23.3]} 28... c5 {[%clk 0:00:25.1]} 29. Kg2 {[%clk 0:01:16.9]}
29... cxd4 {[%clk 0:00:25]} 30. Bg5 {[%clk 0:01:15.2]} 30... hxg5 {[%clk
0:00:15.9]} 31. hxg5 {[%clk 0:01:16.1]} 31... g6 {[%clk 0:00:16.6]} 32. Qh4+
{[%clk 0:01:13.6]} 32... Kg8 {[%clk 0:00:15.8]} 33. Re2 {[%clk 0:01:05.6]} 33...
Nh7 {[%clk 0:00:13.8]} 34. Rh1 {[%clk 0:01:04.2]} 34... Qxg5 {[%clk 0:00:13.8]}
35. Qxh7+ {[%clk 0:01:04]} 35... Kf8 {[%clk 0:00:14.5]} 36. e6 {[%clk
0:01:02.8]} 36... fxe6 {[%clk 0:00:05.8]} 37. Rxe6 {[%clk 0:01:02]} 37... d3
{[%clk 0:00:03]} 38. Rxg6 {[%clk 0:01:00.5]} 38... Qf5 {[%clk 0:00:01.4]} 39.
Rg8# {[%clk 0:01:00.3]} 1-0

[Event "Early-Titled-Tuesday-Blitz-September-12-2023"]
[Site "Chess.com"]
[Date "2023.09.12"]
[Round "3"]
[White "malakismayil"]
[Black "OparinGrigoriy"]
[Result "0-1"]
[WhiteElo "2526"]
[BlackElo "3023"]
[TimeControl "180+1"]
[EndTime "8:27:21 PDT"]
[Termination "OparinGrigoriy won on time"]

1. e4 {[%clk 0:03:00.9]} 1... c5 {[%clk 0:03:00.3]} 2. Nf3 {[%clk 0:03:00.7]}
2... Nc6 {[%clk 0:03:01]} 3. Bb5 {[%clk 0:03:00.7]} 3... e6 {[%clk 0:03:01.6]}
4. O-O {[%clk 0:02:59.9]} 4... Nge7 {[%clk 0:03:01.6]} 5. d4 {[%clk 0:02:56.4]}
5... cxd4 {[%clk 0:03:00.1]} 6. Nxd4 {[%clk 0:02:57.3]} 6... Nxd4 {[%clk
0:02:55.9]} 7. Qxd4 {[%clk 0:02:58.2]} 7... Nc6 {[%clk 0:02:56.5]} 8. Bxc6
{[%clk 0:02:53.6]} 8... dxc6 {[%clk 0:02:47.3]} 9. Qxd8+ {[%clk 0:02:40.2]} 9...
Kxd8 {[%clk 0:02:48.2]} 10. Rd1+ {[%clk 0:02:40.2]} 10... Ke8 {[%clk 0:02:48.8]}
11. Bf4 {[%clk 0:02:36]} 11... f6 {[%clk 0:02:43.4]} 12. e5 {[%clk 0:02:28.9]}
12... h6 {[%clk 0:02:30.6]} 13. Nd2 {[%clk 0:02:06.9]} 13... g5 {[%clk
0:02:27.4]} 14. Be3 {[%clk 0:01:58.3]} 14... f5 {[%clk 0:02:27.3]} 15. f3 {[%clk
0:01:51.2]} 15... Rh7 {[%clk 0:02:05.5]} 16. Nc4 {[%clk 0:01:46.6]} 16... Rd7
{[%clk 0:02:05.9]} 17. Rxd7 {[%clk 0:01:44.9]} 17... Bxd7 {[%clk 0:02:05.8]} 18.
Rd1 {[%clk 0:01:45.6]} 18... b6 {[%clk 0:02:04]} 19. Nd6+ {[%clk 0:01:41.8]}
19... Ke7 {[%clk 0:01:51.8]} 20. c4 {[%clk 0:01:33.8]} 20... c5 {[%clk
0:01:49.4]} 21. b4 {[%clk 0:01:17.2]} 21... cxb4 {[%clk 0:01:40.7]} 22. c5
{[%clk 0:01:18.1]} 22... b5 {[%clk 0:01:38.6]} 23. c6 {[%clk 0:00:37.6]} 23...
Bxc6 {[%clk 0:01:39]} 24. Bc5 {[%clk 0:00:15.6]} 24... Bd5 {[%clk 0:01:39.5]}
25. Nxf5+ {[%clk 0:00:04.8]} 25... Kd7 {[%clk 0:01:40]} 26. Bxf8 {[%clk
0:00:02.9]} 26... Rxf8 {[%clk 0:01:40.9]} 27. Ne3 {[%clk 0:00:03.5]} 27... Kc6
{[%clk 0:01:38.9]} 28. Rc1+ {[%clk 0:00:03.9]} 28... Kb6 {[%clk 0:01:36.1]} 29.
Nxd5+ {[%clk 0:00:03.8]} 29... exd5 {[%clk 0:01:36.5]} 30. Kf2 {[%clk
0:00:04.1]} 30... Re8 {[%clk 0:01:35.4]} 31. Re1 {[%clk 0:00:04.4]} 31... a5
{[%clk 0:01:30.4]} 32. g3 {[%clk 0:00:04.9]} 32... d4 {[%clk 0:01:19]} 33. f4
{[%clk 0:00:05.2]} 33... Kc5 {[%clk 0:01:19.1]} 34. Kf3 {[%clk 0:00:04.4]} 34...
Kd5 {[%clk 0:01:18.3]} 35. Rc1 {[%clk 0:00:02.6]} 35... a4 {[%clk 0:01:16.8]}
36. Rb1 {[%clk 0:00:01.8]} 36... b3 {[%clk 0:01:14.5]} 37. axb3 {[%clk
0:00:01.8]} 37... a3 {[%clk 0:01:15]} 38. b4 {[%clk 0:00:02.1]} 38... a2 {[%clk
0:01:11.3]} 39. Ra1 {[%clk 0:00:02]} 39... Ra8 {[%clk 0:01:11.9]} 40. Ke2 {[%clk
0:00:01.5]} 40... Ra3 {[%clk 0:00:57.7]} 0-1

[Event "Early-Titled-Tuesday-Blitz-September-12-2023"]
[Site "Chess.com"]
[Date "2023.09.12"]
[Round "3"]
[White "Andreikka"]
[Black "Lennis93"]
[Result "1-0"]
[WhiteElo "3002"]
[BlackElo "2744"]
[TimeControl "180+1"]
[EndTime "8:27:22 PDT"]
[Termination "Andreikka won on time"]

1. Nf3 {[%clk 0:02:59.6]} 1... b6 {[%clk 0:02:58]} 2. e4 {[%clk 0:02:57.4]} 2...
c5 {[%clk 0:02:58.3]} 3. d4 {[%clk 0:02:56.4]} 3... cxd4 {[%clk 0:02:59.2]} 4.
Nxd4 {[%clk 0:02:57.1]} 4... Bb7 {[%clk 0:02:59.6]} 5. f3 {[%clk 0:02:57.1]}
5... a6 {[%clk 0:02:57.6]} 6. c4 {[%clk 0:02:54.2]} 6... g6 {[%clk 0:02:56.1]}
7. Nc3 {[%clk 0:02:53.3]} 7... Bg7 {[%clk 0:02:56.7]} 8. Be3 {[%clk 0:02:53.9]}
8... d6 {[%clk 0:02:55.9]} 9. Qd2 {[%clk 0:02:53.8]} 9... Nd7 {[%clk 0:02:55.6]}
10. g4 {[%clk 0:02:49.8]} 10... h5 {[%clk 0:02:55.9]} 11. g5 {[%clk 0:02:49.9]}
11... e6 {[%clk 0:02:56.1]} 12. Be2 {[%clk 0:02:48.9]} 12... Rc8 {[%clk
0:02:54.8]} 13. Rc1 {[%clk 0:02:48.2]} 13... Ne7 {[%clk 0:02:54.2]} 14. O-O
{[%clk 0:02:42.8]} 14... O-O {[%clk 0:02:42.7]} 15. Rfd1 {[%clk 0:02:33.9]}
15... d5 {[%clk 0:02:41.2]} 16. cxd5 {[%clk 0:02:19.9]} 16... exd5 {[%clk
0:02:41.4]} 17. exd5 {[%clk 0:02:19.2]} 17... Nxd5 {[%clk 0:02:39.8]} 18. Nxd5
{[%clk 0:02:15.3]} 18... Rxc1 {[%clk 0:02:37]} 19. Qxc1 {[%clk 0:02:12.4]} 19...
Bxd5 {[%clk 0:02:37.1]} 20. Nc6 {[%clk 0:02:12.9]} 20... Bxc6 {[%clk 0:02:31.9]}
21. Qxc6 {[%clk 0:02:12.4]} 21... Qe7 {[%clk 0:02:29.5]} 22. Qe4 {[%clk
0:02:09.5]} 22... Qxe4 {[%clk 0:02:12.7]} 23. fxe4 {[%clk 0:02:10.4]} 23... Nc5
{[%clk 0:02:12]} 24. Rd6 {[%clk 0:02:04.2]} 24... Bxb2 {[%clk 0:01:33.5]} 25.
Rxb6 {[%clk 0:02:00.7]} 25... Ba3 {[%clk 0:01:29.9]} 26. Bc4 {[%clk 0:01:58.5]}
26... Kh7 {[%clk 0:00:18.3]} 27. Bd5 {[%clk 0:01:45.4]} 27... a5 {[%clk
0:00:17.6]} 28. Rb5 {[%clk 0:01:37.1]} 28... Ne6 {[%clk 0:00:17.6]} 29. Rxa5
{[%clk 0:01:35.5]} 29... Bb2 {[%clk 0:00:17]} 30. Ra7 {[%clk 0:01:33.1]} 30...
Bd4 {[%clk 0:00:12.8]} 31. Bxd4 {[%clk 0:01:29.4]} 31... Nxd4 {[%clk 0:00:13.7]}
32. Kf2 {[%clk 0:01:29]} 32... Kg7 {[%clk 0:00:13.1]} 33. a4 {[%clk 0:01:28.3]}
33... h4 {[%clk 0:00:09.1]} 34. Rb7 {[%clk 0:01:27.1]} 34... Rc8 {[%clk
0:00:07.6]} 35. Rxf7+ {[%clk 0:01:22.7]} 35... Kh8 {[%clk 0:00:08.2]} 36. Ke3
{[%clk 0:01:19.5]} 36... Nc2+ {[%clk 0:00:08.5]} 37. Kf4 {[%clk 0:01:19.4]}
37... Nd4 {[%clk 0:00:06.5]} 38. Ke5 {[%clk 0:01:17.1]} 38... Nc2 {[%clk
0:00:04.9]} 39. Rf4 {[%clk 0:01:17.1]} 39... Kg7 {[%clk 0:00:04]} 40. a5 {[%clk
0:01:15.7]} 40... Re8+ {[%clk 0:00:04.5]} 41. Kd6 {[%clk 0:01:15.3]} 41... Rd8+
{[%clk 0:00:03.3]} 42. Kc7 {[%clk 0:01:15]} 42... Re8 {[%clk 0:00:03.1]} 43. a6
{[%clk 0:01:15]} 43... Nb4 {[%clk 0:00:03.7]} 44. a7 {[%clk 0:01:15.1]} 44...
Re7+ {[%clk 0:00:02.6]} 45. Kb6 {[%clk 0:01:13.9]} 1-0

[Event "Early-Titled-Tuesday-Blitz-September-12-2023"]
[Site "Chess.com"]
[Date "2023.09.12"]
[Round "3"]
[White "econpower"]
[Black "Duhless"]
[Result "0-1"]
[WhiteElo "2731"]
[BlackElo "2979"]
[TimeControl "180+1"]
[EndTime "8:27:24 PDT"]
[Termination "Duhless won by resignation"]

1. d4 {[%clk 0:03:00.2]} 1... Nf6 {[%clk 0:02:37.7]} 2. Nf3 {[%clk 0:02:59.5]}
2... g6 {[%clk 0:02:36.9]} 3. c4 {[%clk 0:02:58]} 3... Bg7 {[%clk 0:02:37]} 4.
Nc3 {[%clk 0:02:58.7]} 4... d5 {[%clk 0:02:37.1]} 5. cxd5 {[%clk 0:02:59.3]}
5... Nxd5 {[%clk 0:02:37.8]} 6. Bd2 {[%clk 0:03:00.2]} 6... c5 {[%clk
0:02:35.2]} 7. e4 {[%clk 0:02:58.2]} 7... Nxc3 {[%clk 0:02:31.2]} 8. Bxc3 {[%clk
0:02:59.1]} 8... cxd4 {[%clk 0:02:31.7]} 9. Bxd4 {[%clk 0:02:59.2]} 9... O-O
{[%clk 0:02:32.6]} 10. Bxg7 {[%clk 0:02:58.8]} 10... Kxg7 {[%clk 0:02:32.8]} 11.
Qxd8 {[%clk 0:02:58.6]} 11... Rxd8 {[%clk 0:02:33]} 12. Rd1 {[%clk 0:02:59.2]}
12... Rxd1+ {[%clk 0:02:32]} 13. Kxd1 {[%clk 0:02:59.3]} 13... Be6 {[%clk
0:02:32.9]} 14. a3 {[%clk 0:02:56]} 14... Nc6 {[%clk 0:02:33.4]} 15. Bb5 {[%clk
0:02:23.2]} 15... Rd8+ {[%clk 0:02:32.2]} 16. Ke2 {[%clk 0:02:20.2]} 16... Nd4+
{[%clk 0:02:26.1]} 17. Nxd4 {[%clk 0:02:19.6]} 17... Rxd4 {[%clk 0:02:26.8]} 18.
Bd3 {[%clk 0:02:14.1]} 18... Bc4 {[%clk 0:02:17.2]} 19. Bxc4 {[%clk 0:02:09.9]}
19... Rxc4 {[%clk 0:02:17.1]} 20. Kd3 {[%clk 0:02:05.4]} 20... Rc6 {[%clk
0:02:16.7]} 21. f4 {[%clk 0:02:00.8]} 21... Kf6 {[%clk 0:02:15.4]} 22. Rf1
{[%clk 0:01:57.5]} 22... h5 {[%clk 0:02:09.8]} 23. g3 {[%clk 0:01:56.7]} 23...
Rd6+ {[%clk 0:01:54]} 24. Ke3 {[%clk 0:01:56.4]} 24... Rb6 {[%clk 0:01:52.9]}
25. Rf2 {[%clk 0:01:54.8]} 25... e5 {[%clk 0:01:46.1]} 26. b4 {[%clk 0:01:38.3]}
26... Ra6 {[%clk 0:01:38.7]} 27. Ra2 {[%clk 0:01:34.8]} 27... Rc6 {[%clk
0:01:38.1]} 28. Kd3 {[%clk 0:01:31.1]} 28... Ke6 {[%clk 0:01:32.1]} 29. a4
{[%clk 0:01:24.3]} 29... f6 {[%clk 0:01:26.8]} 30. Rf2 {[%clk 0:01:20.9]} 30...
Rd6+ {[%clk 0:01:21.1]} 31. Ke3 {[%clk 0:01:05.7]} 31... Rd4 {[%clk 0:01:20.1]}
32. Rb2 {[%clk 0:01:06.3]} 32... b6 {[%clk 0:01:03.2]} 33. a5 {[%clk 0:00:46]}
33... bxa5 {[%clk 0:00:58.7]} 34. bxa5 {[%clk 0:00:46.9]} 34... Ra4 {[%clk
0:00:58.7]} 35. fxe5 {[%clk 0:00:40.7]} 35... Ra3+ {[%clk 0:00:55.3]} 36. Kf2
{[%clk 0:00:25.6]} 36... Kxe5 {[%clk 0:00:54]} 37. Rb5+ {[%clk 0:00:26.5]} 37...
Kxe4 {[%clk 0:00:52.3]} 38. Rb4+ {[%clk 0:00:23.3]} 38... Kd5 {[%clk 0:00:48.8]}
0-1

[Event "Early-Titled-Tuesday-Blitz-September-12-2023"]
[Site "Chess.com"]
[Date "2023.09.12"]
[Round "3"]
[White "Zarinur"]
[Black "MightyGMpretender"]
[Result "0-1"]
[WhiteElo "2506"]
[BlackElo "2814"]
[TimeControl "180+1"]
[EndTime "8:27:25 PDT"]
[Termination "MightyGMpretender won on time"]

1. e4 {[%clk 0:03:00.9]} 1... g6 {[%clk 0:02:52.8]} 2. d4 {[%clk 0:03:00.1]}
2... Bg7 {[%clk 0:02:53.3]} 3. Nc3 {[%clk 0:02:53.2]} 3... a6 {[%clk 0:02:53.3]}
4. Nf3 {[%clk 0:02:47.7]} 4... d6 {[%clk 0:02:49.4]} 5. h3 {[%clk 0:02:45.9]}
5... Nf6 {[%clk 0:02:42.7]} 6. Bd3 {[%clk 0:02:42.6]} 6... O-O {[%clk
0:02:38.6]} 7. O-O {[%clk 0:02:40.6]} 7... Nbd7 {[%clk 0:02:35.6]} 8. Bg5 {[%clk
0:02:40.5]} 8... c5 {[%clk 0:02:32.2]} 9. Qd2 {[%clk 0:02:36.5]} 9... cxd4
{[%clk 0:02:30.3]} 10. Nxd4 {[%clk 0:02:37.4]} 10... Nc5 {[%clk 0:02:30.5]} 11.
Bh6 {[%clk 0:02:34.4]} 11... Bd7 {[%clk 0:02:20.8]} 12. Bxg7 {[%clk 0:02:29.2]}
12... Kxg7 {[%clk 0:02:21]} 13. Kh1 {[%clk 0:02:27.2]} 13... e5 {[%clk
0:02:01.9]} 14. Nb3 {[%clk 0:02:15.1]} 14... Bc6 {[%clk 0:02:02]} 15. Rfe1
{[%clk 0:01:54.2]} 15... Ne6 {[%clk 0:01:59.4]} 16. Rad1 {[%clk 0:01:33.3]}
16... Qc7 {[%clk 0:01:59.1]} 17. Bc4 {[%clk 0:01:26.8]} 17... Rad8 {[%clk
0:01:51.2]} 18. Bxe6 {[%clk 0:01:22.2]} 18... fxe6 {[%clk 0:01:51.1]} 19. Qe3
{[%clk 0:00:36.9]} 19... Nh5 {[%clk 0:01:47.6]} 20. g3 {[%clk 0:00:35]} 20...
Rf7 {[%clk 0:00:59.5]} 21. Kg2 {[%clk 0:00:31.3]} 21... Rdf8 {[%clk 0:00:59.3]}
22. Rd2 {[%clk 0:00:28.5]} 22... Nf6 {[%clk 0:00:55.5]} 23. Red1 {[%clk
0:00:26.2]} 23... d5 {[%clk 0:00:52.8]} 24. f3 {[%clk 0:00:16.5]} 24... d4
{[%clk 0:00:52.6]} 25. Nxd4 {[%clk 0:00:12.4]} 25... exd4 {[%clk 0:00:53.5]} 26.
Rxd4 {[%clk 0:00:11.6]} 26... e5 {[%clk 0:00:53.4]} 27. Rd6 {[%clk 0:00:10.8]}
27... Ne8 {[%clk 0:00:46.8]} 28. R6d3 {[%clk 0:00:05.1]} 28... Rxf3 {[%clk
0:00:47]} 29. Qxf3 {[%clk 0:00:05.3]} 29... Rxf3 {[%clk 0:00:47]} 30. Kxf3
{[%clk 0:00:04.6]} 30... Nf6 {[%clk 0:00:44.9]} 31. R1d2 {[%clk 0:00:02.4]}
31... b5 {[%clk 0:00:43.3]} 32. Nd5 {[%clk 0:00:02.7]} 32... Bxd5 {[%clk
0:00:43.2]} 0-1

[Event "Early-Titled-Tuesday-Blitz-September-12-2023"]
[Site "Chess.com"]
[Date "2023.09.12"]
[Round "3"]
[White "Triumphmate"]
[Black "Pumpkin_in_moonlight"]
[Result "1-0"]
[WhiteElo "2518"]
[BlackElo "2282"]
[TimeControl "180+1"]
[EndTime "8:27:28 PDT"]
[Termination "Triumphmate won on time"]

1. e4 {[%clk 0:03:00.9]} 1... e5 {[%clk 0:02:58.8]} 2. Nf3 {[%clk 0:02:51.9]}
2... Nc6 {[%clk 0:02:58]} 3. Nc3 {[%clk 0:02:51.3]} 3... Nf6 {[%clk 0:02:55.4]}
4. Bb5 {[%clk 0:02:51.8]} 4... Bb4 {[%clk 0:02:37.5]} 5. O-O {[%clk 0:02:36.6]}
5... O-O {[%clk 0:02:28.4]} 6. d3 {[%clk 0:02:36.8]} 6... d6 {[%clk 0:02:19.2]}
7. Bg5 {[%clk 0:02:34.6]} 7... Bxc3 {[%clk 0:02:06.1]} 8. bxc3 {[%clk
0:02:35.5]} 8... h6 {[%clk 0:02:05]} 9. Bh4 {[%clk 0:02:35.4]} 9... Be6 {[%clk
0:01:38.1]} 10. d4 {[%clk 0:02:27.4]} 10... Bg4 {[%clk 0:01:12.4]} 11. h3 {[%clk
0:02:11.7]} 11... Bxf3 {[%clk 0:01:08.5]} 12. Qxf3 {[%clk 0:02:12.6]} 12... exd4
{[%clk 0:01:05.9]} 13. Bxc6 {[%clk 0:02:10.5]} 13... bxc6 {[%clk 0:01:04]} 14.
cxd4 {[%clk 0:02:10.9]} 14... Re8 {[%clk 0:00:55.2]} 15. Rae1 {[%clk 0:02:04.9]}
15... g5 {[%clk 0:00:48.6]} 16. Bg3 {[%clk 0:01:50.8]} 16... Nh7 {[%clk
0:00:40.4]} 17. Qc3 {[%clk 0:01:26.1]} 17... Qd7 {[%clk 0:00:30.6]} 18. f4
{[%clk 0:01:24.9]} 18... d5 {[%clk 0:00:24.5]} 19. e5 {[%clk 0:01:19]} 19... g4
{[%clk 0:00:20.8]} 20. f5 {[%clk 0:01:15.8]} 20... gxh3 {[%clk 0:00:16.7]} 21.
Bf4 {[%clk 0:01:05.1]} 21... hxg2 {[%clk 0:00:11.1]} 22. Rf2 {[%clk 0:00:40.7]}
22... Qxf5 {[%clk 0:00:09.8]} 23. Bxh6 {[%clk 0:00:39.4]} 23... Qh5 {[%clk
0:00:03.8]} 24. Rxg2+ {[%clk 0:00:34.1]} 24... Kh8 {[%clk 0:00:03.5]} 25. Bg7+
{[%clk 0:00:33.7]} 25... Kg8 {[%clk 0:00:03.6]} 26. Bf6+ {[%clk 0:00:30.7]}
26... Kf8 {[%clk 0:00:03.6]} 27. Qc5+ {[%clk 0:00:31.4]} 1-0

[Event "Early-Titled-Tuesday-Blitz-September-12-2023"]
[Site "Chess.com"]
[Date "2023.09.12"]
[Round "3"]
[White "maracayo"]
[Black "mjray79"]
[Result "1-0"]
[WhiteElo "2418"]
[BlackElo "2550"]
[TimeControl "180+1"]
[EndTime "8:27:33 PDT"]
[Termination "maracayo won by checkmate"]

1. e4 {[%clk 0:03:00.9]} 1... c6 {[%clk 0:02:58.5]} 2. Nf3 {[%clk 0:02:59.8]}
2... d5 {[%clk 0:02:59]} 3. d3 {[%clk 0:02:59.5]} 3... Bg4 {[%clk 0:02:54]} 4.
Be2 {[%clk 0:02:58]} 4... Nd7 {[%clk 0:02:51.6]} 5. O-O {[%clk 0:02:56.2]} 5...
e5 {[%clk 0:02:48.6]} 6. Re1 {[%clk 0:02:54.6]} 6... Bxf3 {[%clk 0:02:44]} 7.
Bxf3 {[%clk 0:02:52.5]} 7... d4 {[%clk 0:02:44.5]} 8. c3 {[%clk 0:02:47.2]} 8...
Bc5 {[%clk 0:02:44.3]} 9. b4 {[%clk 0:02:39.9]} 9... Bb6 {[%clk 0:02:44.3]} 10.
Bb2 {[%clk 0:02:20.2]} 10... Ne7 {[%clk 0:02:39.1]} 11. cxd4 {[%clk 0:02:19.2]}
11... Bxd4 {[%clk 0:02:39]} 12. Bxd4 {[%clk 0:02:18.4]} 12... exd4 {[%clk
0:02:39.9]} 13. Nd2 {[%clk 0:02:07.8]} 13... O-O {[%clk 0:02:34]} 14. Nb3 {[%clk
0:02:06.6]} 14... Qb6 {[%clk 0:02:34]} 15. Rb1 {[%clk 0:02:01.3]} 15... Qxb4
{[%clk 0:02:15.3]} 16. Nd2 {[%clk 0:01:59.8]} 16... Qa3 {[%clk 0:02:10]} 17.
Rxb7 {[%clk 0:02:00.1]} 17... Ne5 {[%clk 0:01:55.4]} 18. Qb3 {[%clk 0:01:23.5]}
18... Qa5 {[%clk 0:01:44]} 19. Rd1 {[%clk 0:01:15.7]} 19... N7g6 {[%clk
0:01:36.7]} 20. Be2 {[%clk 0:00:48.4]} 20... Nf4 {[%clk 0:01:33.4]} 21. Bf1
{[%clk 0:00:48.2]} 21... Ne6 {[%clk 0:01:20.5]} 22. Nc4 {[%clk 0:00:40.3]} 22...
Nxc4 {[%clk 0:01:12.9]} 23. Qxc4 {[%clk 0:00:41.2]} 23... Rab8 {[%clk
0:01:03.4]} 24. Rdb1 {[%clk 0:00:35.1]} 24... Rxb7 {[%clk 0:01:03.1]} 25. Rxb7
{[%clk 0:00:34.5]} 25... c5 {[%clk 0:00:59.4]} 26. g3 {[%clk 0:00:31.5]} 26...
Qe1 {[%clk 0:00:49.7]} 27. Rxa7 {[%clk 0:00:27.3]} 27... Ng5 {[%clk 0:00:49.8]}
28. Kg2 {[%clk 0:00:25]} 28... Nf3 {[%clk 0:00:43.5]} 29. Kxf3 {[%clk
0:00:19.2]} 29... Qxf1 {[%clk 0:00:44]} 30. Qd5 {[%clk 0:00:15.8]} 30... Qxd3+
{[%clk 0:00:41.3]} 31. Kg2 {[%clk 0:00:16.7]} 31... h5 {[%clk 0:00:23.1]} 32.
Ra8 {[%clk 0:00:16.3]} 32... c4 {[%clk 0:00:18.9]} 33. Rxf8+ {[%clk 0:00:15.2]}
33... Kxf8 {[%clk 0:00:19.8]} 34. Qd8# {[%clk 0:00:14.6]} 1-0

[Event "Early-Titled-Tuesday-Blitz-September-12-2023"]
[Site "Chess.com"]
[Date "2023.09.12"]
[Round "3"]
[White "MatyChess1"]
[Black "Vladimir_Zakhartsov"]
[Result "1/2-1/2"]
[WhiteElo "2688"]
[BlackElo "2890"]
[TimeControl "180+1"]
[EndTime "8:27:36 PDT"]
[Termination "Game drawn by repetition"]

1. d4 {[%clk 0:03:00.9]} 1... Nf6 {[%clk 0:02:54.9]} 2. Bf4 {[%clk 0:03:01.4]}
2... d5 {[%clk 0:02:52.2]} 3. e3 {[%clk 0:03:01.8]} 3... c5 {[%clk 0:02:52.2]}
4. Nf3 {[%clk 0:03:02.3]} 4... Nc6 {[%clk 0:02:52.3]} 5. Nbd2 {[%clk 0:03:03]}
5... Nh5 {[%clk 0:02:52.4]} 6. dxc5 {[%clk 0:03:02]} 6... Nxf4 {[%clk
0:02:51.3]} 7. exf4 {[%clk 0:03:02.9]} 7... Qa5 {[%clk 0:02:51.7]} 8. c3 {[%clk
0:03:00]} 8... Qxc5 {[%clk 0:02:50.7]} 9. Bd3 {[%clk 0:02:59]} 9... g6 {[%clk
0:02:50.3]} 10. O-O {[%clk 0:02:58.9]} 10... Bg7 {[%clk 0:02:50.4]} 11. Re1
{[%clk 0:02:59.5]} 11... O-O {[%clk 0:02:50.7]} 12. Nb3 {[%clk 0:02:58.9]} 12...
Qd6 {[%clk 0:02:50.7]} 13. g3 {[%clk 0:02:57]} 13... Bg4 {[%clk 0:02:48.9]} 14.
Be2 {[%clk 0:02:55.4]} 14... e6 {[%clk 0:02:42.8]} 15. Ne5 {[%clk 0:02:46.2]}
15... Bh3 {[%clk 0:02:33]} 16. Nf3 {[%clk 0:02:31.4]} 16... h6 {[%clk
0:02:26.9]} 17. Bf1 {[%clk 0:02:23]} 17... Bxf1 {[%clk 0:02:25.6]} 18. Kxf1
{[%clk 0:02:22]} 18... b5 {[%clk 0:02:25.2]} 19. Re2 {[%clk 0:01:57]} 19... Rfd8
{[%clk 0:02:21.3]} 20. Nbd4 {[%clk 0:01:50.2]} 20... Rab8 {[%clk 0:02:17.5]} 21.
a3 {[%clk 0:01:48.5]} 21... a5 {[%clk 0:02:16.3]} 22. h4 {[%clk 0:01:45.7]}
22... h5 {[%clk 0:02:07.3]} 23. Kg2 {[%clk 0:01:41.9]} 23... Rb6 {[%clk
0:01:57.4]} 24. Ng5 {[%clk 0:01:31.2]} 24... Nxd4 {[%clk 0:01:39.1]} 25. cxd4
{[%clk 0:01:30.7]} 25... b4 {[%clk 0:01:39.5]} 26. Rc2 {[%clk 0:01:16.4]} 26...
Rc6 {[%clk 0:01:28.7]} 27. Nf3 {[%clk 0:01:09.3]} 27... Rdc8 {[%clk 0:01:26.8]}
28. Rxc6 {[%clk 0:01:02.4]} 28... Qxc6 {[%clk 0:01:27.7]} 29. axb4 {[%clk
0:01:00.7]} 29... axb4 {[%clk 0:01:28.6]} 30. Ra7 {[%clk 0:00:54.7]} 30... Qb6
{[%clk 0:01:21.2]} 31. Qa4 {[%clk 0:00:34.6]} 31... Rf8 {[%clk 0:00:27.2]} 32.
Qd7 {[%clk 0:00:34.7]} 32... Bxd4 {[%clk 0:00:16.8]} 33. Rb7 {[%clk 0:00:35]}
33... Qc5 {[%clk 0:00:17]} 34. Rc7 {[%clk 0:00:33]} 34... Qb6 {[%clk 0:00:16.2]}
35. Rb7 {[%clk 0:00:31.5]} 35... Qc5 {[%clk 0:00:12.2]} 36. Rc7 {[%clk
0:00:28.6]} 36... Qb6 {[%clk 0:00:10.3]} 37. Rb7 {[%clk 0:00:28.7]} 1/2-1/2